[Event "Early-Titled-Tuesday-Blitz-January-16-2024"]
[Site "Chess.com"]
[Date "2024.01.16"]
[Round "3"]
[White "MokshAD1603"]
[Black "Bkmzzzzz"]
[Result "1-0"]
[WhiteElo "2608"]
[BlackElo "2390"]
[TimeControl "180+1"]
[EndTime "8:29:13 PST"]
[Termination "MokshAD1603 won by checkmate"]

1. d4 {[%clk 0:02:56.4]} 1... d5 {[%clk 0:02:59.2]} 2. c4 {[%clk 0:02:51.3]}
2... dxc4 {[%clk 0:03:00.1]} 3. Nf3 {[%clk 0:02:49]} 3... a6 {[%clk 0:02:59.6]}
4. e3 {[%clk 0:02:46.7]} 4... Nf6 {[%clk 0:02:59.6]} 5. Bxc4 {[%clk 0:02:45.5]}
5... e6 {[%clk 0:03:00.2]} 6. O-O {[%clk 0:02:46.1]} 6... c5 {[%clk 0:03:00.4]}
7. b3 {[%clk 0:02:45.1]} 7... b5 {[%clk 0:02:58.2]} 8. Be2 {[%clk 0:02:45.5]}
8... Bb7 {[%clk 0:02:58.9]} 9. a4 {[%clk 0:02:39.5]} 9... bxa4 {[%clk
0:02:58.1]} 10. Rxa4 {[%clk 0:02:36.2]} 10... Be7 {[%clk 0:02:52.5]} 11. dxc5
{[%clk 0:02:20.2]} 11... Qxd1 {[%clk 0:02:45.5]} 12. Rxd1 {[%clk 0:02:21.1]}
12... Bxc5 {[%clk 0:02:45.9]} 13. Rc4 {[%clk 0:01:55.3]} 13... Nbd7 {[%clk
0:02:45.3]} 14. Bb2 {[%clk 0:01:53.6]} 14... Bd5 {[%clk 0:02:44.2]} 15. Rcc1
{[%clk 0:01:34.3]} 15... Bxb3 {[%clk 0:02:43.1]} 16. Rd3 {[%clk 0:01:34.7]}
16... Bd5 {[%clk 0:02:32.7]} 17. Nc3 {[%clk 0:01:30]} 17... Bb7 {[%clk
0:02:25.1]} 18. Na4 {[%clk 0:01:26.1]} 18... Be7 {[%clk 0:01:37.4]} 19. Rc7
{[%clk 0:01:23.2]} 19... Be4 {[%clk 0:00:52.6]} 20. Rd1 {[%clk 0:01:17.4]} 20...
Bd8 {[%clk 0:00:46.6]} 21. Rcc1 {[%clk 0:01:12.4]} 21... O-O {[%clk 0:00:43.5]}
22. Nd4 {[%clk 0:01:02.1]} 22... Bb7 {[%clk 0:00:30.6]} 23. Nc6 {[%clk
0:00:59.9]} 23... Bxc6 {[%clk 0:00:20.9]} 24. Rxc6 {[%clk 0:00:57.2]} 24... a5
{[%clk 0:00:20.8]} 25. Bf3 {[%clk 0:00:54.5]} 25... Rb8 {[%clk 0:00:20.2]} 26.
Bc3 {[%clk 0:00:51.8]} 26... h6 {[%clk 0:00:18.2]} 27. h3 {[%clk 0:00:51]} 27...
Re8 {[%clk 0:00:17.9]} 28. Ra6 {[%clk 0:00:50.8]} 28... Rb5 {[%clk 0:00:17.4]}
29. Bc6 {[%clk 0:00:50.3]} 29... Rb3 {[%clk 0:00:12.3]} 30. Bxd7 {[%clk
0:00:50.1]} 30... Nxd7 {[%clk 0:00:13.2]} 31. Rxd7 {[%clk 0:00:49.1]} 31... Ra3
{[%clk 0:00:13]} 32. Ra8 {[%clk 0:00:46]} 32... Rxa4 {[%clk 0:00:12.2]} 33.
Raxd8 {[%clk 0:00:44.9]} 33... Rxd8 {[%clk 0:00:13.1]} 34. Rxd8+ {[%clk
0:00:45.8]} 34... Kh7 {[%clk 0:00:13.8]} 35. Ra8 {[%clk 0:00:46.7]} 35... Rc4
{[%clk 0:00:14.1]} 36. Bxa5 {[%clk 0:00:46.9]} 36... Kg6 {[%clk 0:00:14]} 37.
Bb6 {[%clk 0:00:45.7]} 37... Kf5 {[%clk 0:00:13.2]} 38. Ra5+ {[%clk 0:00:44]}
38... Kf6 {[%clk 0:00:12.9]} 39. Bd4+ {[%clk 0:00:44.4]} 39... Kg6 {[%clk
0:00:13.6]} 40. g4 {[%clk 0:00:43]} 40... Rc2 {[%clk 0:00:13.8]} 41. h4 {[%clk
0:00:42.8]} 41... Kh7 {[%clk 0:00:13]} 42. Ra7 {[%clk 0:00:41.4]} 42... Kg6
{[%clk 0:00:10.2]} 43. Kg2 {[%clk 0:00:40.2]} 43... f6 {[%clk 0:00:08.5]} 44.
h5+ {[%clk 0:00:40.5]} 44... Kg5 {[%clk 0:00:08.8]} 45. Kg3 {[%clk 0:00:41]}
45... g6 {[%clk 0:00:03.1]} 46. f4# {[%clk 0:00:40.7]} 1-0

[Event "Early-Titled-Tuesday-Blitz-January-16-2024"]
[Site "Chess.com"]
[Date "2024.01.16"]
[Round "3"]
[White "CFN_Good_Evening"]
[Black "Barmen_EV"]
[Result "0-1"]
[WhiteElo "1865"]
[BlackElo "2542"]
[TimeControl "180+1"]
[EndTime "8:29:13 PST"]
[Termination "Barmen_EV won by checkmate"]

1. d4 {[%clk 0:03:00.9]} 1... f5 {[%clk 0:02:53.7]} 2. g3 {[%clk 0:03:00.1]}
2... Nf6 {[%clk 0:02:52.3]} 3. Bg2 {[%clk 0:03:00.6]} 3... g6 {[%clk 0:02:52.5]}
4. c4 {[%clk 0:02:59.5]} 4... Bg7 {[%clk 0:02:52.5]} 5. Nc3 {[%clk 0:02:59.7]}
5... O-O {[%clk 0:02:53]} 6. Nf3 {[%clk 0:02:55.7]} 6... d6 {[%clk 0:02:52.9]}
7. O-O {[%clk 0:02:52]} 7... Qe8 {[%clk 0:02:52.7]} 8. Re1 {[%clk 0:02:50.2]}
8... e5 {[%clk 0:02:52.1]} 9. e4 {[%clk 0:02:36.6]} 9... Nc6 {[%clk 0:02:50.8]}
10. exf5 {[%clk 0:02:32.1]} 10... Bxf5 {[%clk 0:02:48.6]} 11. dxe5 {[%clk
0:02:31.5]} 11... dxe5 {[%clk 0:02:49.5]} 12. Nh4 {[%clk 0:02:27.3]} 12... Rd8
{[%clk 0:02:46.7]} 13. Qa4 {[%clk 0:02:09.9]} 13... Nd4 {[%clk 0:02:41.7]} 14.
Nxf5 {[%clk 0:01:58.8]} 14... gxf5 {[%clk 0:02:29.1]} 15. Be3 {[%clk 0:01:25.6]}
15... Qxa4 {[%clk 0:02:21.9]} 16. Nxa4 {[%clk 0:01:26.5]} 16... Nc2 {[%clk
0:02:22.6]} 17. Bxb7 {[%clk 0:01:21.5]} 17... Nxa1 {[%clk 0:01:41.8]} 18. Rxa1
{[%clk 0:01:21]} 18... a5 {[%clk 0:01:42.7]} 19. Bg2 {[%clk 0:01:11]} 19... Rfe8
{[%clk 0:01:36.8]} 20. Nc5 {[%clk 0:01:07.1]} 20... Rd6 {[%clk 0:01:33.4]} 21.
Nb7 {[%clk 0:01:02]} 21... Rde6 {[%clk 0:01:11.7]} 22. Nxa5 {[%clk 0:01:00.6]}
22... e4 {[%clk 0:01:08.7]} 23. Nb3 {[%clk 0:00:54.5]} 23... Ng4 {[%clk
0:00:39.7]} 24. Bf4 {[%clk 0:00:37.6]} 24... Bxb2 {[%clk 0:00:30.6]} 25. Rb1
{[%clk 0:00:36.4]} 25... Be5 {[%clk 0:00:30.8]} 26. Bxe5 {[%clk 0:00:21.2]}
26... Nxe5 {[%clk 0:00:28.8]} 27. Nd4 {[%clk 0:00:20.8]} 27... Rf6 {[%clk
0:00:29.2]} 28. Rb7 {[%clk 0:00:20]} 28... Rd8 {[%clk 0:00:28.4]} 29. Nb5 {[%clk
0:00:18.9]} 29... Rd1+ {[%clk 0:00:11.1]} 30. Bf1 {[%clk 0:00:18.5]} 30... Nf3+
{[%clk 0:00:12]} 31. Kg2 {[%clk 0:00:18.8]} 31... Rh6 {[%clk 0:00:12.9]} 32. h4
{[%clk 0:00:15.9]} 32... Nxh4+ {[%clk 0:00:10.1]} 33. gxh4 {[%clk 0:00:13.8]}
33... Rg6+ {[%clk 0:00:10.4]} 34. Kh2 {[%clk 0:00:12.6]} 34... Rxf1 {[%clk
0:00:10.7]} 35. Rxc7 {[%clk 0:00:11.1]} 35... Rxf2+ {[%clk 0:00:10.9]} 36. Kh3
{[%clk 0:00:11.3]} 36... f4 {[%clk 0:00:08]} 37. h5 {[%clk 0:00:11.3]} 37...
Rg3+ {[%clk 0:00:08]} 38. Kh4 {[%clk 0:00:11.3]} 38... Rh2# {[%clk 0:00:08.9]}
0-1

[Event "Early-Titled-Tuesday-Blitz-January-16-2024"]
[Site "Chess.com"]
[Date "2024.01.16"]
[Round "3"]
[White "SaiHanThiha"]
[Black "JSPrepz"]
[Result "0-1"]
[WhiteElo "2580"]
[BlackElo "2870"]
[TimeControl "180+1"]
[EndTime "8:29:15 PST"]
[Termination "JSPrepz won by resignation"]

1. Nf3 {[%clk 0:03:00]} 1... c5 {[%clk 0:02:59.6]} 2. g3 {[%clk 0:03:00.5]} 2...
Nc6 {[%clk 0:03:00.1]} 3. Bg2 {[%clk 0:03:01.1]} 3... g6 {[%clk 0:03:00.8]} 4.
O-O {[%clk 0:03:01.1]} 4... Bg7 {[%clk 0:03:01.4]} 5. c4 {[%clk 0:03:01.6]} 5...
e6 {[%clk 0:03:01.1]} 6. Nc3 {[%clk 0:02:58.8]} 6... Nge7 {[%clk 0:03:01.1]} 7.
d4 {[%clk 0:02:51.7]} 7... Nxd4 {[%clk 0:03:01.2]} 8. Nxd4 {[%clk 0:02:50.7]}
8... cxd4 {[%clk 0:03:02.1]} 9. Nb5 {[%clk 0:02:50.7]} 9... Qb6 {[%clk
0:02:35.2]} 10. e3 {[%clk 0:02:16.2]} 10... d5 {[%clk 0:02:34.9]} 11. Nxd4
{[%clk 0:01:48.8]} 11... dxc4 {[%clk 0:02:30.7]} 12. Qa4+ {[%clk 0:01:30.1]}
12... Bd7 {[%clk 0:02:30.9]} 13. Qxc4 {[%clk 0:01:30.4]} 13... O-O {[%clk
0:02:29.2]} 14. Bd2 {[%clk 0:01:25]} 14... Nd5 {[%clk 0:02:03.1]} 15. Qb3 {[%clk
0:01:21.6]} 15... Bxd4 {[%clk 0:01:56.6]} 16. exd4 {[%clk 0:01:21]} 16... Qxb3
{[%clk 0:01:53.5]} 17. axb3 {[%clk 0:01:20.9]} 17... Bc6 {[%clk 0:01:54]} 18.
Rfc1 {[%clk 0:01:15.9]} 18... Rfd8 {[%clk 0:01:53.6]} 19. Bg5 {[%clk 0:01:13.9]}
19... Rd7 {[%clk 0:01:51.8]} 20. Bxd5 {[%clk 0:01:09.8]} 20... Rxd5 {[%clk
0:01:49.3]} 21. Be3 {[%clk 0:01:04.9]} 21... f6 {[%clk 0:01:46.4]} 22. Rc3
{[%clk 0:01:03.8]} 22... a6 {[%clk 0:01:45.8]} 23. Rac1 {[%clk 0:01:04.1]} 23...
Kf7 {[%clk 0:01:45.7]} 24. f3 {[%clk 0:01:04.5]} 24... Rb5 {[%clk 0:01:40.9]}
25. Kf2 {[%clk 0:01:03.6]} 25... Rd8 {[%clk 0:01:41.1]} 26. Ra1 {[%clk
0:01:02.2]} 26... Rd7 {[%clk 0:01:39.9]} 27. g4 {[%clk 0:01:02.4]} 27... Bd5
{[%clk 0:01:38.4]} 28. Ra3 {[%clk 0:01:02]} 28... Bc6 {[%clk 0:01:35.8]} 29. h4
{[%clk 0:01:00.8]} 29... h5 {[%clk 0:01:32.4]} 30. Rc5 {[%clk 0:00:58.9]} 30...
Rxc5 {[%clk 0:01:26.1]} 31. dxc5 {[%clk 0:00:58.8]} 31... Rd1 {[%clk 0:01:18.4]}
32. gxh5 {[%clk 0:00:57.1]} 32... gxh5 {[%clk 0:01:18.1]} 33. b4 {[%clk
0:00:57.5]} 33... Rb1 {[%clk 0:01:10.9]} 34. Bd4 {[%clk 0:00:57.5]} 34... e5
{[%clk 0:00:54.3]} 35. Bc3 {[%clk 0:00:55.9]} 35... Ke6 {[%clk 0:00:48.8]} 36.
Ke3 {[%clk 0:00:47.2]} 36... Rh1 {[%clk 0:00:47.6]} 37. Ke2 {[%clk 0:00:42.9]}
37... Rh2+ {[%clk 0:00:46]} 38. Kf1 {[%clk 0:00:43.2]} 38... Rxh4 {[%clk
0:00:39.1]} 39. Be1 {[%clk 0:00:43.3]} 39... Rh1+ {[%clk 0:00:38.4]} 40. Kf2
{[%clk 0:00:43.5]} 40... Rh2+ {[%clk 0:00:38.8]} 41. Kg3 {[%clk 0:00:43.2]}
41... Rxb2 {[%clk 0:00:39.3]} 42. Rd3 {[%clk 0:00:42.1]} 42... Rb1 {[%clk
0:00:38.5]} 43. Bc3 {[%clk 0:00:41.5]} 43... Rg1+ {[%clk 0:00:38.1]} 44. Kf2
{[%clk 0:00:41.2]} 44... Rc1 {[%clk 0:00:37.8]} 45. Bd2 {[%clk 0:00:40.4]} 45...
Rc2 {[%clk 0:00:37.3]} 46. Ke2 {[%clk 0:00:40.5]} 46... Bd5 {[%clk 0:00:37.4]}
47. Ra3 {[%clk 0:00:40.2]} 47... h4 {[%clk 0:00:33.9]} 48. Ra1 {[%clk
0:00:39.6]} 48... Bxf3+ {[%clk 0:00:30.1]} 49. Ke3 {[%clk 0:00:38.5]} 49... Bd5
{[%clk 0:00:27]} 50. Be1 {[%clk 0:00:34.8]} 50... h3 {[%clk 0:00:26.5]} 51. Bg3
{[%clk 0:00:34.8]} 51... Rc3+ {[%clk 0:00:26.9]} 52. Kf2 {[%clk 0:00:34.7]}
52... Rf3+ {[%clk 0:00:27]} 0-1

[Event "Early-Titled-Tuesday-Blitz-January-16-2024"]
[Site "Chess.com"]
[Date "2024.01.16"]
[Round "3"]
[White "Kirill_Klukin"]
[Black "HATilay"]
[Result "1-0"]
[WhiteElo "2858"]
[BlackElo "2566"]
[TimeControl "180+1"]
[EndTime "8:29:15 PST"]
[Termination "Kirill_Klukin won by resignation"]

1. c4 {[%clk 0:03:00.9]} 1... c6 {[%clk 0:03:00.9]} 2. g3 {[%clk 0:02:50]} 2...
Nf6 {[%clk 0:03:00.1]} 3. Bg2 {[%clk 0:02:50]} 3... e5 {[%clk 0:03:00]} 4. d4
{[%clk 0:02:48.7]} 4... exd4 {[%clk 0:02:57.5]} 5. Qxd4 {[%clk 0:02:49.6]} 5...
Na6 {[%clk 0:02:58]} 6. Nf3 {[%clk 0:02:48.8]} 6... Bc5 {[%clk 0:02:56.9]} 7.
Qe5+ {[%clk 0:02:44.7]} 7... Qe7 {[%clk 0:02:56.9]} 8. Qxe7+ {[%clk 0:02:41.6]}
8... Bxe7 {[%clk 0:02:50.9]} 9. a3 {[%clk 0:02:41.8]} 9... d5 {[%clk 0:02:47.7]}
10. cxd5 {[%clk 0:02:36.7]} 10... Nxd5 {[%clk 0:02:47.6]} 11. e4 {[%clk
0:02:33.7]} 11... Nb6 {[%clk 0:02:35.9]} 12. b4 {[%clk 0:02:24.5]} 12... Nc7
{[%clk 0:02:06.2]} 13. Bb2 {[%clk 0:02:05.1]} 13... O-O {[%clk 0:02:00.9]} 14.
O-O {[%clk 0:01:54.1]} 14... Na4 {[%clk 0:01:50.8]} 15. Be5 {[%clk 0:01:50.4]}
15... Nb5 {[%clk 0:01:50.7]} 16. Nbd2 {[%clk 0:01:44.5]} 16... Be6 {[%clk
0:01:49.7]} 17. Rfc1 {[%clk 0:01:33.4]} 17... Rfd8 {[%clk 0:01:29.5]} 18. Nc4
{[%clk 0:01:27.5]} 18... g5 {[%clk 0:01:14]} 19. Na5 {[%clk 0:01:06.4]} 19... f6
{[%clk 0:00:34]} 20. Nxb7 {[%clk 0:00:47.9]} 20... Rd7 {[%clk 0:00:33.7]} 21.
Rxc6 {[%clk 0:00:47.7]} 21... Rxb7 {[%clk 0:00:28.1]} 22. Rxe6 {[%clk
0:00:46.1]} 22... fxe5 {[%clk 0:00:28]} 23. Nxe5 {[%clk 0:00:42.4]} 23... Nd4
{[%clk 0:00:24.3]} 24. Ra6 {[%clk 0:00:37.6]} 24... Nb6 {[%clk 0:00:05.4]} 25.
Rd1 {[%clk 0:00:29.4]} 25... Rd8 {[%clk 0:00:05.1]} 26. Kh1 {[%clk 0:00:24.9]}
26... Bf6 {[%clk 0:00:05.2]} 27. Ng4 {[%clk 0:00:20.9]} 27... Be7 {[%clk
0:00:05.4]} 28. Ne3 {[%clk 0:00:17.8]} 28... Ne6 {[%clk 0:00:03.6]} 29. Nd5
{[%clk 0:00:17.8]} 29... Rd6 {[%clk 0:00:02.8]} 30. Nxe7+ {[%clk 0:00:10.6]}
30... Rxe7 {[%clk 0:00:03.1]} 31. Rxd6 {[%clk 0:00:11.1]} 31... Nc7 {[%clk
0:00:03.2]} 32. Rxa7 {[%clk 0:00:11.1]} 32... Nc4 {[%clk 0:00:03.2]} 33. Rc6
{[%clk 0:00:10.8]} 33... Rd7 {[%clk 0:00:03.4]} 34. Raxc7 {[%clk 0:00:09.7]} 1-0

[Event "Early-Titled-Tuesday-Blitz-January-16-2024"]
[Site "Chess.com"]
[Date "2024.01.16"]
[Round "3"]
[White "jup1978"]
[Black "CrushingKings"]
[Result "0-1"]
[WhiteElo "2464"]
[BlackElo "2668"]
[TimeControl "180+1"]
[EndTime "8:29:16 PST"]
[Termination "CrushingKings won by resignation"]

1. Nf3 {[%clk 0:03:00.9]} 1... g6 {[%clk 0:03:00.9]} 2. d4 {[%clk 0:02:59.2]}
2... Bg7 {[%clk 0:03:01.8]} 3. e4 {[%clk 0:02:59.5]} 3... c6 {[%clk 0:03:01.9]}
4. Nbd2 {[%clk 0:02:58.7]} 4... d5 {[%clk 0:03:02.8]} 5. c3 {[%clk 0:02:55.3]}
5... dxe4 {[%clk 0:03:02.6]} 6. Nxe4 {[%clk 0:02:54.9]} 6... Nf6 {[%clk
0:03:03.5]} 7. Nxf6+ {[%clk 0:02:54.7]} 7... exf6 {[%clk 0:03:04.4]} 8. Bc4
{[%clk 0:02:47.7]} 8... O-O {[%clk 0:03:05.3]} 9. O-O {[%clk 0:02:47.3]} 9... a5
{[%clk 0:03:04.2]} 10. a4 {[%clk 0:02:45.9]} 10... Nd7 {[%clk 0:02:58.7]} 11. h3
{[%clk 0:02:45.5]} 11... Nb6 {[%clk 0:02:57.5]} 12. Bb3 {[%clk 0:02:44.9]} 12...
Nd5 {[%clk 0:02:57.4]} 13. Re1 {[%clk 0:02:43]} 13... Be6 {[%clk 0:02:57.3]} 14.
Bd2 {[%clk 0:02:38.7]} 14... Qd6 {[%clk 0:02:53.5]} 15. Bc2 {[%clk 0:02:32.6]}
15... Rfd8 {[%clk 0:02:47.1]} 16. Qc1 {[%clk 0:02:31]} 16... b5 {[%clk
0:02:40.3]} 17. axb5 {[%clk 0:02:28.3]} 17... cxb5 {[%clk 0:02:41.2]} 18. Bh6
{[%clk 0:02:22]} 18... a4 {[%clk 0:02:38.3]} 19. Bxg7 {[%clk 0:02:21.3]} 19...
Kxg7 {[%clk 0:02:39.2]} 20. Nd2 {[%clk 0:02:21.3]} 20... f5 {[%clk 0:01:54]} 21.
Bd3 {[%clk 0:02:13.7]} 21... b4 {[%clk 0:01:42.4]} 22. Nf3 {[%clk 0:02:08.9]}
22... a3 {[%clk 0:01:22.3]} 23. bxa3 {[%clk 0:01:47]} 23... bxc3 {[%clk
0:01:21.4]} 24. Ne5 {[%clk 0:01:43.7]} 24... Ra4 {[%clk 0:00:52.6]} 25. Bc4
{[%clk 0:01:36.3]} 25... Rc8 {[%clk 0:00:46.4]} 26. Bb3 {[%clk 0:01:22]} 26...
Rxd4 {[%clk 0:00:43.6]} 27. Nf3 {[%clk 0:01:19.5]} 27... Re4 {[%clk 0:00:28.8]}
28. Ng5 {[%clk 0:01:00]} 28... Rxe1+ {[%clk 0:00:25.8]} 29. Qxe1 {[%clk
0:01:00.9]} 29... Nf4 {[%clk 0:00:13]} 30. Bxe6 {[%clk 0:00:38.6]} 30... Nxe6
{[%clk 0:00:10]} 31. Nf3 {[%clk 0:00:32.5]} 31... c2 {[%clk 0:00:07.7]} 32. Rc1
{[%clk 0:00:18.8]} 32... Nf4 {[%clk 0:00:07.8]} 33. Qe3 {[%clk 0:00:02.3]} 33...
Nd3 {[%clk 0:00:05]} 34. Ng5 {[%clk 0:00:01.3]} 34... Nxc1 {[%clk 0:00:03.9]}
35. Qxc1 {[%clk 0:00:02.2]} 35... Qd1+ {[%clk 0:00:03.5]} 36. Kh2 {[%clk
0:00:02.4]} 36... Qxc1 {[%clk 0:00:03.8]} 0-1

[Event "Early-Titled-Tuesday-Blitz-January-16-2024"]
[Site "Chess.com"]
[Date "2024.01.16"]
[Round "3"]
[White "shirovin"]
[Black "alekroth65"]
[Result "0-1"]
[WhiteElo "1984"]
[BlackElo "2364"]
[TimeControl "180+1"]
[EndTime "8:29:18 PST"]
[Termination "alekroth65 won on time"]

1. e4 {[%clk 0:03:00.9]} 1... d6 {[%clk 0:02:58.8]} 2. d4 {[%clk 0:03:00.3]}
2... Nf6 {[%clk 0:02:58.7]} 3. Nc3 {[%clk 0:03:00]} 3... g6 {[%clk 0:02:59]} 4.
h3 {[%clk 0:02:56.5]} 4... Bg7 {[%clk 0:02:56.6]} 5. Be3 {[%clk 0:02:56.9]} 5...
a6 {[%clk 0:02:55.1]} 6. f4 {[%clk 0:02:57.2]} 6... b5 {[%clk 0:02:50]} 7. g4
{[%clk 0:02:55.7]} 7... b4 {[%clk 0:02:42.8]} 8. e5 {[%clk 0:02:52]} 8... bxc3
{[%clk 0:02:39.4]} 9. exf6 {[%clk 0:02:51]} 9... Bxf6 {[%clk 0:02:33.6]} 10.
bxc3 {[%clk 0:02:48.9]} 10... h5 {[%clk 0:02:30.4]} 11. Bg2 {[%clk 0:02:41.2]}
11... c6 {[%clk 0:02:22.7]} 12. Qf3 {[%clk 0:02:20.7]} 12... Qa5 {[%clk
0:02:08.5]} 13. Ne2 {[%clk 0:02:16.4]} 13... Be6 {[%clk 0:02:03.2]} 14. O-O
{[%clk 0:02:07.8]} 14... hxg4 {[%clk 0:02:02.9]} 15. hxg4 {[%clk 0:02:05.5]}
15... Bd5 {[%clk 0:01:58.4]} 16. Qf2 {[%clk 0:01:59.2]} 16... Bh4 {[%clk
0:01:56.6]} 17. Ng3 {[%clk 0:01:53]} 17... Qxc3 {[%clk 0:01:49.1]} 18. Bxd5
{[%clk 0:01:37.3]} 18... cxd5 {[%clk 0:01:48.9]} 19. Rfe1 {[%clk 0:01:27.2]}
19... Nc6 {[%clk 0:01:47.4]} 20. Rad1 {[%clk 0:00:53.5]} 20... Rc8 {[%clk
0:01:40.5]} 21. Rd3 {[%clk 0:00:52.4]} 21... Qc4 {[%clk 0:01:38.9]} 22. Qg2
{[%clk 0:00:38]} 22... Nb4 {[%clk 0:01:31.5]} 23. Rd2 {[%clk 0:00:36.9]} 23...
Nxc2 {[%clk 0:01:17.4]} 24. Rc1 {[%clk 0:00:21.7]} 24... Qc3 {[%clk 0:01:16.9]}
25. Rcxc2 {[%clk 0:00:16]} 25... Qxe3+ {[%clk 0:01:15]} 26. Qf2 {[%clk
0:00:16.4]} 26... Qxf2+ {[%clk 0:01:14.7]} 27. Kxf2 {[%clk 0:00:16.4]} 27... Kd7
{[%clk 0:01:14.4]} 28. Kf3 {[%clk 0:00:14.8]} 28... Rxc2 {[%clk 0:01:09.9]} 29.
Rxc2 {[%clk 0:00:14.5]} 29... Rb8 {[%clk 0:01:08.1]} 30. Ne2 {[%clk 0:00:13.7]}
30... Rb4 {[%clk 0:01:05.2]} 31. g5 {[%clk 0:00:12.9]} 31... Ra4 {[%clk
0:01:00]} 32. Kg4 {[%clk 0:00:11.6]} 32... Bf2 {[%clk 0:00:57.8]} 33. Rd2 {[%clk
0:00:11.3]} 33... e6 {[%clk 0:00:53.6]} 34. Kf3 {[%clk 0:00:11.3]} 34... Be1
{[%clk 0:00:51]} 35. Rd1 {[%clk 0:00:10.2]} 35... Ra3+ {[%clk 0:00:48.6]} 36.
Kg2 {[%clk 0:00:08.9]} 36... Ba5 {[%clk 0:00:47]} 37. Ra1 {[%clk 0:00:06.8]}
37... Bb6 {[%clk 0:00:44.7]} 38. Kf2 {[%clk 0:00:04.2]} 38... Rd3 {[%clk
0:00:42]} 39. Rb1 {[%clk 0:00:03.9]} 39... Kc7 {[%clk 0:00:40.2]} 40. Rc1+
{[%clk 0:00:03]} 40... Kb7 {[%clk 0:00:39.9]} 41. Rb1 {[%clk 0:00:03.6]} 41...
Ka7 {[%clk 0:00:38.7]} 42. a4 {[%clk 0:00:03.8]} 42... Bxd4+ {[%clk 0:00:35.7]}
43. Nxd4 {[%clk 0:00:03.7]} 43... Rxd4 {[%clk 0:00:35.6]} 44. Kf3 {[%clk
0:00:04]} 44... Rxa4 {[%clk 0:00:35]} 45. Rc1 {[%clk 0:00:02]} 45... Rc4 {[%clk
0:00:34.6]} 46. Rb1 {[%clk 0:00:01.8]} 46... Rc7 {[%clk 0:00:32.4]} 47. Rh1
{[%clk 0:00:01.8]} 47... a5 {[%clk 0:00:32.1]} 48. Rh8 {[%clk 0:00:01.4]} 48...
Ka6 {[%clk 0:00:31.6]} 0-1

[Event "Early-Titled-Tuesday-Blitz-January-16-2024"]
[Site "Chess.com"]
[Date "2024.01.16"]
[Round "3"]
[White "Sanyura"]
[Black "KuzubovYuriy"]
[Result "0-1"]
[WhiteElo "2615"]
[BlackElo "2880"]
[TimeControl "180+1"]
[EndTime "8:29:19 PST"]
[Termination "KuzubovYuriy won by resignation"]

1. e4 {[%clk 0:03:00]} 1... e6 {[%clk 0:02:59.9]} 2. d4 {[%clk 0:02:59.7]} 2...
d5 {[%clk 0:03:00.6]} 3. Nc3 {[%clk 0:02:58.9]} 3... Bb4 {[%clk 0:03:00]} 4. e5
{[%clk 0:02:57.7]} 4... Ne7 {[%clk 0:03:00.5]} 5. Bd2 {[%clk 0:02:54.8]} 5... b6
{[%clk 0:02:58.5]} 6. Qg4 {[%clk 0:02:51.8]} 6... Nf5 {[%clk 0:02:44.4]} 7. Bd3
{[%clk 0:02:48.6]} 7... h5 {[%clk 0:02:43.5]} 8. Qf4 {[%clk 0:02:48.8]} 8... g5
{[%clk 0:02:35.2]} 9. Qf3 {[%clk 0:02:21.2]} 9... Nxd4 {[%clk 0:02:01.8]} 10.
Qg3 {[%clk 0:02:21.2]} 10... Rg8 {[%clk 0:01:53.9]} 11. h4 {[%clk 0:02:15.6]}
11... g4 {[%clk 0:01:51.8]} 12. Qf4 {[%clk 0:01:46.3]} 12... c5 {[%clk
0:01:28.1]} 13. a3 {[%clk 0:01:44.3]} 13... Bxc3 {[%clk 0:01:24.9]} 14. bxc3
{[%clk 0:01:43.9]} 14... Nf5 {[%clk 0:01:09.5]} 15. Bxf5 {[%clk 0:01:43.2]}
15... exf5 {[%clk 0:01:10.4]} 16. Qh6 {[%clk 0:01:40]} 16... Qe7 {[%clk
0:01:04.6]} 17. Bg5 {[%clk 0:01:33]} 17... Qe6 {[%clk 0:01:02.1]} 18. Qxh5
{[%clk 0:01:30.2]} 18... Ba6 {[%clk 0:00:57.3]} 19. Qh7 {[%clk 0:01:21.1]} 19...
Qxe5+ {[%clk 0:00:50.3]} 20. Kd2 {[%clk 0:01:20.2]} 20... Rh8 {[%clk 0:00:50.9]}
21. f4 {[%clk 0:00:49.9]} 21... gxf3 {[%clk 0:00:47.7]} 22. Qxh8+ {[%clk
0:00:40.7]} 22... Qxh8 {[%clk 0:00:46.7]} 23. Re1+ {[%clk 0:00:41.2]} 23... Kf8
{[%clk 0:00:45.4]} 24. Be7+ {[%clk 0:00:33.1]} 24... Kg8 {[%clk 0:00:44.8]} 25.
Nxf3 {[%clk 0:00:19.3]} 25... Nc6 {[%clk 0:00:44.8]} 26. Bg5 {[%clk 0:00:19.5]}
26... Kh7 {[%clk 0:00:40]} 27. Bf4 {[%clk 0:00:16.2]} 27... f6 {[%clk
0:00:29.3]} 28. Re6 {[%clk 0:00:14.6]} 28... Bb7 {[%clk 0:00:23.1]} 29. Rhe1
{[%clk 0:00:14.7]} 29... Rg8 {[%clk 0:00:20.6]} 30. g3 {[%clk 0:00:14.3]} 30...
Qg7 {[%clk 0:00:18.2]} 31. h5 {[%clk 0:00:14.5]} 31... Qf7 {[%clk 0:00:16.5]}
32. h6 {[%clk 0:00:14.4]} 32... Qd7 {[%clk 0:00:12.7]} 33. Nh4 {[%clk
0:00:14.5]} 33... Bc8 {[%clk 0:00:12.1]} 34. Rxf6 {[%clk 0:00:11.8]} 34... Re8
{[%clk 0:00:11.1]} 35. Rd6 {[%clk 0:00:07.6]} 35... Qf7 {[%clk 0:00:09.7]} 36.
Rxc6 {[%clk 0:00:07.5]} 36... Rxe1 {[%clk 0:00:09.7]} 37. Rc7 {[%clk 0:00:07.6]}
37... Re7 {[%clk 0:00:08.1]} 38. Rxc8 {[%clk 0:00:08]} 38... Qe6 {[%clk
0:00:07.9]} 39. Kc1 {[%clk 0:00:07.4]} 39... d4 {[%clk 0:00:07.8]} 40. Rb8
{[%clk 0:00:05.7]} 40... Qe1+ {[%clk 0:00:07.3]} 41. Kb2 {[%clk 0:00:05.2]}
41... Qxc3+ {[%clk 0:00:08]} 0-1